Cogmind - Beta 13 @@@ ROGUE MODE // 2024.04.02 @ 13:31:45 Player: Scringis Result: Self-destructed Performance ------------- Evolutions (2) 1000 Regions Visited (5) 1000 Robots Destroyed (12) 60 Value Destroyed (207) 207 Prototype IDs (3) 60 Alien Tech Used (0) 0 Bonus (300) 300 TOTAL SCORE: 2627 Bonus ------- Aligned with FarCom 300 Cogmind --------- Core Integrity 550/550 Matter 300/300 Energy 250/250 System Corruption 0% Temperature Cool (0) Movement Treading (160) Location -8/Materials Parts ------- > --- POWER (1) -------- Ion Engine > --- PROPULSION (2) --- Light Treads Light Treads > --- UTILITY (5) ------ Large Storage Unit ECM Suite > --- WEAPON (3) ------- Beam Cannon Beam Cannon > --- INVENTORY (15) --- Light Ion Engine Light Treads Improved Cooling System Targeting Computer Matter Filter Energy Filter Advanced ECM Suite Improved Medium Armor Plating Sensor Drone Bay Plasma Cannon Heavy Ion Cannon AWS/Gauss Grenade Launcher Ripper Peak State ------------ > --- POWER ------------ Ion Engine > --- PROPULSION ------- Light Treads Light Treads > --- UTILITY ---------- Large Storage Unit Advanced ECM Suite > --- WEAPON ----------- AWS/Gauss > --- INVENTORY -------- Light Ion Engine Light Treads Targeting Computer Matter Filter Beam Cannon Beam Cannon Plasma Cannon Heavy Ion Cannon Assault Rifle Assault Rifle Assault Rifle Light Cannon [Rating: 26] Favorites ----------- Power Ion Engine Engine Ion Engine Propulsion Light Treads Treads Light Treads Utility ECM Suite Device ECM Suite Storage Large Storage Unit Weapon Beam Cannon Energy Cannon Beam Cannon Ballistic Gun Assault Rifle Build | -11 -10 -10 -10 -9 -8 ------- Run | Yrd Mat Min Exi Min Mat Slots Evolved 4 | . . . . . 4 Power . | . . . . . . Propulsion . | . . . . . . Utility 3 | . . . . . 3 Weapon 1 | . . . . . 1 Parts Attached 14 | 6 2 . 2 4 . Power 1 | 1 . . . . . Engine 1 | 1 . . . . . Core . | . . . . . . Reactor . | . . . . . . Propulsion 2 | 2 . . . . . Treads 2 | 2 . . . . . Leg . | . . . . . . Wheel . | . . . . . . Hover . | . . . . . . Flight . | . . . . . . Utility 6 | 1 2 . 1 2 . Device 3 | . 1 . . 2 . Storage 3 | 1 1 . 1 . . Processor . | . . . . . . Hackware . | . . . . . . Protection . | . . . . . . Artifact . | . . . . . . Weapon 5 | 2 . . 1 2 . Energy Gun . | . . . . . . Energy Cannon 2 | . . . . 2 . Ballistic Gun 3 | 2 . . 1 . . Ballistic Cannon . | . . . . . . Launcher . | . . . . . . Special Weapon . | . . . . . . Impact Weapon . | . . . . . . Slashing Weapon . | . . . . . . Piercing Weapon . | . . . . . . Special Melee Weapon . | . . . . . . Unidentified Prototypes 1 | . . . 1 . . Parts Lost . | . . . . . . Power . | . . . . . . Propulsion . | . . . . . . Utility . | . . . . . . Weapon . | . . . . . . Highest Loss Streak . | . . . . . . To Critical Strikes . | . . . . . . Average Slot Usage (%) 97 | . 95 100 93 99 . Engine 14 | . 14 14 14 14 . Treads 28 | . 28 28 28 28 . Device 12 | . 9 14 14 13 . Storage 14 | . 14 14 14 14 . Energy Cannon 14 | . . . . 26 . Ballistic Gun 12 | . 28 28 21 . . Naked Turns . | . . . . . . Heaviest Build 38 | 14 21 21 37 38 . Greatest Support 40 | 40 40 40 40 40 . Greatest Overweight (x) . | . . . . . . Average Overweight (x) . | . . . . . . Largest Inventory Capacity 15 | 8 10 10 15 15 . Average Capacity 12 | 6 8 10 10 15 . Most Carried 15 | 3 7 7 10 15 . Average Carried 10 | 1 4 7 7 14 . Final Capacity 15 | 8 10 10 15 15 15 Final Carried 15 | 2 7 7 9 15 15 Class Distribution -------------------- 100% | Mutant Dominant Class ---------------- Mutant | -10/Materials Mutant | -10/Mines Mutant | -10/Exiles Mutant | -9/Mines Mutant | -8/Materials Resources | -11 -10 -10 -10 -9 -8 ----------- Run | Yrd Mat Min Exi Min Mat Matter Collected 520 | 144 241 48 . 87 . Remotely . | . . . . . . Salvage Created 454 | . 222 58 . 174 . Parts 22 | . 13 1 . 8 . Haulers Intercepted 1 | . 1 . . . . Recyclers Shooed 1 | . . . . 1 . Parts Field Recycled . | . . . . . . Retrieved Matter . | . . . . . . Parts Self-Destructed . | . . . . . . Prevented . | . . . . . . Kills | -11 -10 -10 -10 -9 -8 ------- Run | Yrd Mat Min Exi Min Mat Combat Hostiles Destroyed 7 | . 4 3 . . . Guns 6 | . 3 3 . . . AOE 1 | . 1 . . . . Classes Destroyed 5 | . 2 2 . 1 . Tunneler 2 | . . 1 . 1 . Hauler 1 | . 1 . . . . Recycler 2 | . . . . 2 . Swarmer 3 | . . 3 . . . Grunt 4 | . 4 . . . . Best Kill Streak 2 | . 2 2 . 2 . Combat Bots Only 2 | . 2 2 . . . Max Kills in Single Turn 1 | . 1 1 . 1 . Gunslinging . | . . . . . . Exploded 1 | . 1 . . . . Melee . | . . . . . . Uniques/NPCs Destroyed . | . . . . . . Combat | -11 -10 -10 -10 -9 -8 -------- Run | Yrd Mat Min Exi Min Mat Hostile Shots Fired 30 | . 20 10 . . . Missed 8 | . 6 2 . . . Damage Taken 273 | . 212 61 . . . Core 45 | . 29 16 . . . Absorbed by Shields . | . . . . . . Core Remaining (%) 91 | 100 . . . 82 . Volleys Fired 33 | . 22 8 . 3 . Largest 2 | . 2 2 . 2 . Hottest 120 | . 40 40 . 120 . Shots Fired 64 | . 44 16 . 4 . Gun 60 | . 44 16 . . . Cannon 4 | . . . . 4 . Launcher . | . . . . . . Special . | . . . . . . Kinetic 60 | . 44 16 . . . Thermal 4 | . . . . 4 . Explosive . | . . . . . . Electromagnetic . | . . . . . . Robot Hit Streak 14 | . 14 2 . 5 . Robot Miss Streak 4 | . 2 4 . . . Penetration Max . | . . . . . . Secondary Targets . | . . . . . . Shots Hit Robots 41 | . 33 5 . 3 . Core Hits 17 | . 9 4 . 4 . Critical Kills . | . . . . . . Critical Parts Destroyed . | . . . . . . Critical Strikes . | . . . . . . Melee Attacks . | . . . . . . Impact . | . . . . . . Slashing . | . . . . . . Piercing . | . . . . . . Sneak Attacks . | . . . . . . Combat Hostiles . | . . . . . . Follow-up Attacks . | . . . . . . Damage Inflicted 573 | . 415 63 . 95 . Guns 478 | . 415 63 . . . Cannons 52 | . . . . 52 . Explosions . | . . . . . . Melee . | . . . . . . Ramming 43 | . . . . 43 . Kinetic 478 | . 415 63 . . . Thermal 52 | . . . . 52 . Explosive . | . . . . . . Electromagnetic . | . . . . . . Impact . | . . . . . . Slashing . | . . . . . . Piercing . | . . . . . . Highest Corruption . | . . . . . . Average Corruption . | . . . . . . Corruption Purged . | . . . . . . Corruption Blocked . | . . . . . . Overload Shots . | . . . . . . Overflow Damage . | . . . . . . Projectiles . | . . . . . . Explosions . | . . . . . . Melee . | . . . . . . Knockbacks 1 | . . . . 1 . Impact 1 | . . . . 1 . Kinetic . | . . . . . . Secondary . | . . . . . . Self-Inflicted Damage . | . . . . . . Shots . | . . . . . . Rammed 6 | . . . . 6 . Targets Rammed 6 | . . . . 6 . Kicked . | . . . . . . Crushed . | . . . . . . Highest Temperature 60 | . 2 . . 60 . Average Temperature 21 | . 2 . . 26 . Received Heat Transfer 96 | . 96 . . . . Siege Activations . | . . . . . . Robots Corrupted . | . . . . . . Combat Hostiles . | . . . . . . Parts Fried . | . . . . . . Impact Corruptions . | . . . . . . Robots Melted . | . . . . . . Combat Hostiles . | . . . . . . Parts Melted . | . . . . . . Heat Transferred 111 | . . . . 111 . Parts Sabotaged . | . . . . . . Parts Stolen . | . . . . . . Parts Stripped . | . . . . . . Power Chain Reactions . | . . . . . . Alert | -11 -10 -10 -10 -9 -8 ------- Run | Yrd Mat Min Exi Min Mat Peak Influence 122 | . 122 75 . 10 . Initial . | . . . . . . Average 19 | . 53 50 . 3 . Maximum Alert Level . | . . . . . . Low Security (%) 100 | 100 100 100 . 100 . Level 1 . | . . . . . . Level 2 . | . . . . . . Level 3 . | . . . . . . Level 4 . | . . . . . . Level 5 . | . . . . . . High Security . | . . . . . . Max Security . | . . . . . . Squads Dispatched 2 | . 2 . . . . Investigation 1 | . 1 . . . . Extermination . | . . . . . . Reinforcement 1 | . 1 . . . . Assault . | . . . . . . Garrison . | . . . . . . Intercept . | . . . . . . Searches Triggered . | . . . . . . Construction Impeded . | . . . . . . Haulers Reinforced . | . . . . . . Active Scanning Responses . | . . . . . . Cargo Convoy Interrupts . | . . . . . . Stealth | -11 -10 -10 -10 -9 -8 --------- Run | Yrd Mat Min Exi Min Mat Distress Signals 1 | . 1 . . . . Communications Jammed . | . . . . . . Distress Signals . | . . . . . . Times Spotted 14 | . 8 6 . . . Peak Tracking Total 3 | . 2 3 . . . Tactical Retreats 4 | . 3 1 . . . Traps | -11 -10 -10 -10 -9 -8 ------- Run | Yrd Mat Min Exi Min Mat Traps Triggered . | . . . . . . Indirectly . | . . . . . . Trap Hack Attempts . | . . . . . . Triggered . | . . . . . . Disarmed . | . . . . . . Reprogrammed . | . . . . . . Reused . | . . . . . . Traps Extracted . | . . . . . . Installed . | . . . . . . Triggered . | . . . . . . Machines | -11 -10 -10 -10 -9 -8 ---------- Run | Yrd Mat Min Exi Min Mat Machines Disabled . | . . . . . . Max in Single Turn . | . . . . . . Machines Repaired . | . . . . . . Machines Dismantled . | . . . . . . Machines Sabotaged . | . . . . . . Overloaded Fab Kills . | . . . . . . Hacking | -11 -10 -10 -10 -9 -8 --------- Run | Yrd Mat Min Exi Min Mat Machines Accessed 5 | . 2 . 1 2 . Terminals 2 | . 2 . . . . Fabricators . | . . . . . . Repair Stations . | . . . . . . Recycling Units . | . . . . . . Scanalyzers . | . . . . . . Garrison Access . | . . . . . . Total Hacks 14 | . 3 . 9 2 . Successful 14 | . 3 . 9 2 . Failed . | . . . . . . Catastrophic . | . . . . . . Database Lockouts . | . . . . . . Manual 1 | . . . 1 . . Terminals 3 | . 3 . . . . Fabricators . | . . . . . . Repair Stations . | . . . . . . Recycling Units . | . . . . . . Scanalyzers . | . . . . . . Garrison Access . | . . . . . . Terminal Hacks 14 | . 3 . 9 2 . Record 9 | . . . 9 . . Prototype ID Bank 1 | . 1 . . . . Open Door 2 | . . . . 2 . Branch Access Points 1 | . 1 . . . . Hauler Manifests 1 | . 1 . . . . Fabricator Hacks . | . . . . . . Repair Station Hacks . | . . . . . . Recycling Unit Hacks . | . . . . . . Scanalyzer . | . . . . . . Garrison Access Hacks . | . . . . . . Unauthorized Hacks . | . . . . . . Terminals . | . . . . . . Fabricators . | . . . . . . Repair Stations . | . . . . . . Recycling Units . | . . . . . . Scanalyzers . | . . . . . . Garrison Access . | . . . . . . Data Cores Recovered . | . . . . . . Used . | . . . . . . Hacking Detections . | . . . . . . Full Trace Events . | . . . . . . Feedback Events . | . . . . . . Feedback Blocked . | . . . . . . Robot Schematics Acquired . | . . . . . . Robots Built . | . . . . . . Authchips . | . . . . . . Time . | . . . . . . Total Robot Build Rating . | . . . . . . Part Schematics Acquired . | . . . . . . Parts Built . | . . . . . . Authchips . | . . . . . . Time . | . . . . . . Total Part Build Rating . | . . . . . . Parts Repaired . | . . . . . . Time . | . . . . . . Parts Recycled . | . . . . . . Recycled Matter . | . . . . . . Retrieved Matter . | . . . . . . Retrieved Components . | . . . . . . Parts Scanalyzed . | . . . . . . Part Schematics Acquired . | . . . . . . Parts Damaged . | . . . . . . Bothacking | -11 -10 -10 -10 -9 -8 ------------ Run | Yrd Mat Min Exi Min Mat Used RIF Installer . | . . . . . . Robots Hacked . | . . . . . . Non-combat . | . . . . . . Combat . | . . . . . . Robot Hacks Applied . | . . . . . . Relay Couplers Released . | . . . . . . Fabnet Peak Effective % . | . . . . . . Robots Rewired . | . . . . . . Allies Hacked . | . . . . . . Hacks Repelled . | . . . . . . Allies | -11 -10 -10 -10 -9 -8 -------- Run | Yrd Mat Min Exi Min Mat Total Allies 1 | . . . . 1 . Largest Group 1 | . . . . 1 . Highest-Rated Group 31 | . . . . 31 . Highest-Rated Ally 31 | . . . . 31 . Total Orders . | . . . . . . Ally Attacks . | . . . . . . Total Damage . | . . . . . . Kills . | . . . . . . Allies Corrupted . | . . . . . . Allies Melted . | . . . . . . Intel | -11 -10 -10 -10 -9 -8 ------- Run | Yrd Mat Min Exi Min Mat Robot Analysis Total . | . . . . . . Derelict Logs Recovered 1 | . . . . 1 . Drone Launches . | . . . . . . Drone Recoveries . | . . . . . . Exploration | -11 -10 -10 -10 -9 -8 ------------- Run | Yrd Mat Min Exi Min Mat Turns Passed 2978 | 72 681 117 588 1520 . Spaces Moved 1726 | 42 370 54 356 904 . Core 7 | 7 . . . . . Treads 1719 | 35 370 54 356 904 . Legs . | . . . . . . Wheels . | . . . . . . Hover . | . . . . . . Flight . | . . . . . . Fastest Speed 50 | 50 160 160 160 160 . Average Speed 159 | 141 160 160 160 160 . Slowest Speed 160 | 160 160 160 160 160 . Overloaded Moves . | . . . . . . Propulsion Burnouts . | . . . . . . Robots Hopped . | . . . . . . Cave-ins Triggered . | . . . . . . Exploration Rate (%) 35 | 3 42 12 63 88 3 Regions Visited 5 Branch Regions 3 Pre-discovered Areas . | . . . . . . Known Exits Taken 1 | . 1 . . . . Unknown Exits Taken 4 | 1 . 1 1 1 . Scrap Searched 2 | . . . . 2 . Spaces Dug . | . . . . . . Terrain Destroyed . | . . . . . . Melee . | . . . . . . Projectile . | . . . . . . AOE . | . . . . . . Terrain Rammed . | . . . . . . Walls Destroyed . | . . . . . . Machines Disabled . | . . . . . . Actions | -11 -10 -10 -10 -9 -8 --------- Run | Yrd Mat Min Exi Min Mat Total 1888 | 55 415 69 376 973 . Wait 57 | . 14 8 . 35 . Move 1721 | 41 369 53 355 903 . Hop . | . . . . . . Pick Up 32 | 8 7 . 4 13 . Fast Attach . | . . . . . . Attach 11 | 6 1 . 1 3 . Detach 1 | . . . 1 . . Swap 3 | . 1 . 1 1 . Drop 11 | . 1 . 3 7 . Fire 33 | . 22 8 . 3 . Melee . | . . . . . . Ram . | . . . . . . Kick . | . . . . . . Crush 6 | . . . . 6 . Escape Stasis . | . . . . . . Rewire 13 | . . . 11 2 . Trap . | . . . . . . Miscellaneous . | . . . . . . Route ------- -11/Scrapyard -10/Materials (discovered 3 exits: [*Mat] / *Min x2) -10/Mines (discovered 2 exits: [*Mat] / *Exi) -10/Exiles -9/Mines (discovered 2 exits: [*Mat x2]) -8/Materials History --------- Turn | Location | Event 5 | -11/Scrapyard | Discovered new exit (range 14) 73 | -11/Scrapyard | Entered Materials 314 | -10/Materials | Build established: Mutant 364 | -10/Materials | Identified exit to Mines 396 | -10/Materials | Discovered new exit (range 10) 754 | -10/Materials | Entered Mines 814 | -10/Mines | Discovered new exit (range 8) 850 | -10/Mines | Deemed a non-threat by the Exiles lab entrance 852 | -10/Mines | Discovered new exit (range 5) 871 | -10/Mines | Entered Exiles 935 | -10/Exiles | Met 8R-AWN 969 | -10/Exiles | Met EX-HEX 1103 | -10/Exiles | Met EX-BIN 1134 | -10/Exiles | Aligned with FarCom system 1135 | -10/Exiles | Given EX-Vault access code 1199 | -10/Exiles | Opened EX-Vault 1207 | -10/Exiles | Found Prototype Ballistic Gun 1209 | -10/Exiles | Identified AWS/Gauss 1253 | -10/Exiles | Warned to stay clear of 0b10 Research branches 1309 | -10/Exiles | Met EX-DEC 1437 | -10/Exiles | Discovered new exit (range 11) 1459 | -10/Exiles | Left Exiles lab with AWS/Gauss 1459 | -10/Exiles | Entered Mines 1478 | -9/Mines | Met a Derelict who couldn't figure out how to use a Trap Extractor 1489 | -9/Mines | Met a Derelict bent on vengeance 1581 | -9/Mines | Discovered new exit (range 7) 1687 | -9/Mines | A weapon hastily lodged in a ceiling crevice suddenly fell to the ground 1771 | -9/Mines | Found the Drone Emporium 1782 | -9/Mines | Found Prototype Device 1821 | -9/Mines | Learned location of 1 exit from Materials 2131 | -9/Mines | Discovered new exit (range 9) 2206 | -9/Mines | YI-UF0 nonchalantly dropped a Grenade Launcher on the ground 2743 | -9/Mines | Received a Mining Laser from a helpful Derelict 2979 | -9/Mines | Entered Materials 2979 | -8/Materials | Accompanied by 1 ally 2979 | -8/Materials | Evolved 4 slots: Utility x3, Weapon x1 2979 | -8/Materials | Self-destructed Last Messages --------------- YI-UF0 mumbles something. Dropped Assault Rifle. Acquired Grenade Launcher. YI-UF0 mumbles something. Slammed into K-01 Serf. YI-UF0 mumbles something. A derelict emerges from the shadows: "What are you doing alone down here?" DD-07O(g): "And why aren't you carrying a mining laser?! Certainly you don't want THEM to uncover you when the ceiling comes crashing down? Here, take my spare." DD-07O(g): "You're apparently new around these parts, I'll cover you." DD-07O(g): "Mining lasers are a lot more useful than you might think..." PARAMETERS=UTILITY+3,WEAPON+1 LOCATION=UNKNOWN GOAL=ESCAPE Receiving FarCom transmissions... Map ----- +----------------------------------------------------+ | ?????????????????????????????????????????? | | ?????????????????????????????????????????? | | ?????????????????????????????????????????? | | ?????????????????????????????????????????? | | ?????????????????????????????????????????? | | ?????????????????????????????????????????? | | ?????????????????????????????????????????? | | ?????????????????????????????????????????? | | ?????????????????????????????????????????? | | ?????????????????????????????????????????? | | ??????????????? ?????????????????????? | | ??????????????# ???????????????????? | | ??????????????# #?????????????????? | | ??????????????# #?????????????????? | | ??????????????# #?????????????????? | | ??????????????# [= #?????????????????? | | ??????????????t [= #?????????????????? | | ??????????????# #?????????????????? | | ??????????????# #?????????????????? | | ??????????????# ]]!#?????????????????? | | ??????????????# [ ]!=#?????????????????? | | ??????????????# ]!=#?????????????????? | | ??????????????# g #?????????????????? | | ??????????????# #######???????????? | | ???????????????# g #???????????? | | ???????????????# @ #???????????? | | ???????????????# o #???????????? | | ???????????????+ #???????????? | | ???????????????# #???????????? | | ???????????????###############???????????? | | ?????????????????????????????????????????? | | ?????????????????????????????????????????? | | ?????????????????????????????????????????? | | | | | | | | | | | | | | | | | | | | | | | | | | | | | | | | | | | +----------------------------------------------------+ Best States ------------- Heat Dissipation 25 Energy Generation 10 Energy Capacity 250 Matter Stores 300 Matter Capacity 300 Sight Range 16 Terrain Scan Density 10 ECM Strength 2 Evasion (%) 40 Recoil Reduction 2 Item Schematics ----------------- None Robot Schematics ------------------ None Fabricated ------------ Nothing Alien Tech Used ----------------- None Achievements -------------- None Challenges ------------ None Game ------ Seed FlakGodCutter Manual? 0 Play Time 00:10:35 Cumulative 7.0 hours Start 2024.04.02 @ 13:21:13 End 2024.04.02 @ 13:31:45 Sessions 1 Manual Loads 0 Difficulty Rogue Special Mode None Game No. 22 Rogue 22 Adventurer 0 Explorer 0 Win Type - Total 0 Types 0/0/0/0/0/0/0/0/0 Lore% 14 Gallery% 11 Achievement% 12 Wizard Run 0 Options --------- Layout 1 ASCII 0 Keyboard 0 Movement Arrows Keybinds 0 Fullscreen 1 Font 24/Smallcaps Map View 50x35 Zoom Use 0% Tactical HUD 0 Map Filters NONE Filters NONE Steam 1 RUN: 3cb0a63c-2568-42da-b2e5-bb492fd660f8